bitfinex/quotes_ETHUSD_20260109
["timestamp","ask_amount","ask_price","bid_price","bid_amount"]
[1767966538617,4.45849707,3089.5,3089.2,0.252]
[1767966539401,4.45849707,3089.5,3089.3,0.252]
[1767966539596,5.74291742,3089.5,3089.3,0.252]
[1767966540138,4.45849707,3089.5,3089.0,0.00280168]
[1767966540323,4.45849707,3089.5,3089.1,0.252]
[1767966540519,5.74291742,3089.5,3089.1,0.252]
[1767966542440,4.45849707,3089.5,3089.1,0.252]
[1767966543008,4.45849707,3089.5,3089.2,0.252]
[1767966543421,5.76887768,3089.5,3089.2,0.252]
[1767966544538,4.45849707,3089.5,3089.2,0.252]
[1767966545441,5.76887768,3089.5,3089.2,0.252]
[1767966546479,4.45849707,3089.5,3089.2,0.252]
[1767966546609,4.45849707,3089.5,3089.2,0.73908974]
[1767966546812,4.38831366,3089.5,3089.2,4.86596987]
[1767966547011,1.31138061,3089.8,3089.5,2.02190555]
[1767966547206,1.31138061,3089.8,3089.1,3.2391439]
[1767966547207,1.31038061,3089.7,3089.1,3.2391439]
[1767966547411,1.31038061,3089.7,3089.2,0.252]
[1767966547942,3.37447179,3089.7,3089.2,0.252]
[1767966548249,1.31038061,3089.6,3089.2,0.60139838]
[1767966548415,2.06409118,3089.7,3089.2,0.252]
[1767966549343,2.06409118,3089.7,3089.1,3.23915823]
[1767966549546,3.37447179,3089.7,3089.2,0.252]
[1767966549950,3.37447179,3089.7,3089.2,0.92512322]
[1767966550337,3.37447179,3089.7,3089.2,0.67312322]
[1767966550537,2.06409118,3089.7,3089.3,0.252]
[1767966551149,2.06409118,3089.7,3089.1,3.23915412]
[1767966551347,2.06409118,3089.7,3089.2,0.252]
[1767966551513,2.06409118,3089.7,3089.2,3.48907552]
[1767966551716,2.06409118,3089.7,3089.2,0.252]
[1767966551948,2.06409118,3089.7,3089.3,0.252]
[1767966552251,1.31038061,3089.6,3089.1,0.002]
[1767966552463,5.30066879,3089.7,3089.4,0.252]
[1767966552949,6.61108242,3089.7,3089.5,0.252]
[1767966553248,1.31038061,3089.5,3089.1,2e-06]
[1767966553450,1.31038061,3089.4,3089.0,0.00280168]
[1767966553950,1.31038061,3089.4,3088.7,0.00080128]
[1767966554121,1.31038061,3089.3,3088.8,0.16969583]
[1767966554444,1.31038061,3089.3,3088.2,6.47622861]
[1767966554648,1.31038061,3089.1,3088.3,0.252]
[1767966554846,1.76512707,3089.1,3088.3,0.252]
[1767966555218,0.00080128,3089.4,3088.5,1.37690353]
[1767966555418,0.00080128,3089.4,3088.3,1.62890353]
[1767966555818,0.00080128,3089.4,3088.4,0.252]
[1767966556350,1.31118189,3089.4,3088.4,0.252]
[1767966556656,0.50399998,3089.3,3088.6,3.23771287]
[1767966556841,0.50399998,3089.3,3088.7,0.71346164]
[1767966557532,1.81438059,3089.3,3088.7,0.71346164]
[1767966558120,1.31038061,3089.2,3088.7,0.46146164]
[1767966558322,1.31038061,3089.2,3088.8,0.252]
[1767966558523,0.50399998,3089.3,3088.9,0.002]
[1767966558751,0.50399998,3089.3,3088.9,3.23939842]
[1767966558940,0.50399998,3089.3,3088.9,0.002]
[1767966560223,0.50399998,3089.3,3089.0,0.252]
[1767966560428,0.50399998,3089.3,3089.1,0.252]
[1767966562660,0.00080128,3089.4,3089.1,0.252]
[1767966562828,0.00080128,3089.4,3089.1,0.73881153]
[1767966563159,0.00080128,3089.4,3089.1,3.97598753]
[1767966563659,0.00080128,3089.4,3089.1,3.72398753]
[1767966563829,0.00080128,3089.4,3089.2,0.252]
[1767966564644,3.28240822,3089.3,3089.2,0.252]
[1767966565862,0.00080128,3089.4,3089.2,3.88665112]
[1767966566166,0.00080168,3090.0,3089.2,7.12373515]
[1767966566460,0.00080168,3090.0,3089.3,1.39740775]
[1767966567488,0.00080168,3090.0,3089.5,1.37690353]
[1767966567846,0.04198276,3089.9,3089.5,1.37690353]
[1767966568042,0.00080168,3090.0,3089.6,2.16196878]
[1767966568247,0.00080168,3090.0,3089.7,0.252]
[1767966568466,0.00080168,3090.0,3089.3,3.25747284]
[1767966568673,1.31118229,3090.0,3089.3,0.02050422]
[1767966568979,1.31118229,3090.0,3089.4,0.252]
[1767966569275,1.31038061,3089.8,3089.4,0.252]
[1767966569481,1.31038061,3089.8,3089.3,0.02050422]
[1767966569776,1.31038061,3089.7,3089.3,0.02050422]
[1767966570379,1.31138061,3089.7,3089.3,0.02050422]
[1767966571680,0.001,3089.7,3089.3,0.02050422]
[1767966572580,0.001,3089.7,3089.4,0.252]
[1767966572985,3.28240822,3089.6,3089.4,0.252]
[1767966573986,3.28240822,3089.6,3089.4,3.48883634]
[1767966574211,3.23578798,3090.5,3089.6,1.31624294]
[1767966574604,3.2356333,3090.6,3089.6,1.31624294]
[1767966574605,3.23564332,3090.6,3089.6,1.31624294]
[1767966574986,1.40648681,3090.5,3089.5,0.35093406]
[1767966576130,3.28240822,3090.4,3089.6,3.23666494]
[1767966576346,3.28240822,3090.4,3089.5,3.58765056]
[1767966576627,3.28240822,3090.4,3089.5,1.667177]
[1767966576983,3.28240822,3090.4,3089.5,4.90393352]
[1767966577183,3.28240822,3090.4,3089.6,0.252]
[1767966577385,4.68889503,3090.4,3089.6,0.252]
[1767966577584,1.40648681,3090.3,3089.6,0.252]
[1767966578288,1.40648681,3090.3,3089.6,4.19623167]
[1767966578489,6.51830237,3090.4,3089.6,4.19623167]
[1767966578790,3.28240822,3090.4,3089.6,8.74913955]
[1767966578987,3.28240822,3090.4,3089.7,1.56824294]
[1767966579507,3.28240822,3090.4,3089.7,0.252]
[1767966579684,3.28240822,3090.4,3089.7,1.16200736]
[1767966580623,3.28240822,3090.4,3089.8,3.23645543]
[1767966580822,6.51824154,3090.4,3089.7,0.252]
[1767966581115,11.16056167,3090.4,3089.8,0.252]
[1767966581302,7.92472835,3090.4,3089.8,0.252]
[1767966581506,1.40648681,3090.3,3089.8,0.252]
[1767966582223,1.40648681,3090.3,3089.9,0.002]
[1767966582442,0.001,3090.0,3089.9,0.002]
[1767966582635,0.001,3090.0,3089.9,0.254]
[1767966584925,0.001,3090.0,3089.5,0.002]
[1767966585223,0.001,3090.0,3089.2,0.252]
[1767966585224,5.66190199,3089.7,3089.2,0.252]
[1767966585437,1.40648681,3089.5,3089.2,0.252]
[1767966585743,1.40648681,3089.9,3089.2,0.252]
[1767966586404,0.001,3090.0,3089.2,0.252]
[1767966586607,0.001,3090.0,3089.3,0.252]
[1767966587045,0.78896673,3090.0,3089.1,0.03237188]
[1767966587219,0.78896673,3090.0,3089.0,1.31704486]
[1767966587422,2.19545354,3090.0,3089.0,1.31704486]
[1767966587730,2.19545354,3090.0,3089.1,3.48913763]
[1767966587923,2.19545354,3090.0,3089.2,3.2370769]
[1767966588222,2.19545354,3090.0,3089.2,0.03237084]
[1767966588534,0.8667736,3089.9,3089.2,3.23704463]
[1767966588837,3.23635069,3089.9,3089.2,0.03237084]
[1767966589241,3.23635069,3089.9,3089.1,0.252]
[1767966589540,1.28994446,3089.9,3089.2,3.23708367]
[1767966589740,1.28994446,3089.9,3089.3,0.03236979]
[1767966590037,0.001,3090.0,3089.3,0.03236979]
[1767966590209,0.001,3090.0,3089.3,0.70822354]
[1767966590927,0.001,3090.0,3089.3,3.94515852]
[1767966591233,0.001,3090.0,3089.4,0.252]
[1767966591434,1.29094446,3090.0,3089.4,0.252]
[1767966592535,0.001,3090.0,3089.4,0.252]
[1767966592722,0.001,3090.0,3089.5,0.41972001]
[1767966594858,0.001,3090.0,3089.6,1.33257255]
[1767966595328,0.000808,3090.7,3089.8,1.33257255]
[1767966595530,1.29075246,3090.7,3090.0,3.23624595]
[1767966595728,1.29075246,3090.7,3089.9,3.48833652]
[1767966595959,1.29075246,3090.7,3089.9,4.16081926]
[1767966596531,0.000808,3090.7,3089.9,5.49339181]
[1767966596931,0.000808,3090.7,3089.9,8.7297425]
[1767966597351,0.000808,3090.7,3089.9,5.49339181]
[1767966597557,1.29075246,3090.7,3089.9,4.16081926]
[1767966597737,1.29075246,3090.7,3090.0,0.41608193]
[1767966598370,0.000808,3090.7,3090.0,0.41608193]
[1767966598533,0.000808,3090.7,3090.1,1.33257255]
[1767966599089,0.000808,3090.7,3090.2,0.252]
[1767966600055,0.000808,3090.7,3090.2,3.48801407]
[1767966600397,0.000808,3090.7,3090.2,3.87842367]
[1767966600598,0.000808,3090.7,3090.2,5.21099622]
[1767966600894,0.000808,3090.7,3090.3,1.33257255]
[1767966601389,0.000808,3090.7,3090.2,3.62642367]
[1767966601688,0.000808,3090.7,3090.3,3.48786439]
[1767966601850,0.000808,3090.7,3090.4,0.71142881]
[1767966602055,1.28994446,3091.5,3090.4,7.70590335]
[1767966602256,3.23439816,3091.8,3090.4,7.70590335]
[1767966602257,1.28994446,3091.8,3090.7,6.99447454]
[1767966602458,1.28994446,3091.8,3090.8,1.58457255]
[1767966602653,3.23496346,3092.0,3090.8,1.58457255]
[1767966602985,0.32349635,3091.9,3090.9,1.29807719]
[1767966603493,1.74646968,3091.9,3090.8,0.97664745]
[1767966603860,1.42297333,3091.8,3090.9,6.47060726]
[1767966604694,1.42377669,3092.0,3091.0,5.66190199]
[1767966604861,1.42377669,3092.0,3091.1,1.21325093]
[1767966605889,1.42297333,3091.9,3091.2,0.252]
[1767966607298,0.001,3091.5,3091.2,0.252]
[1767966608559,0.001,3091.5,3091.2,3.48698738]
[1767966608756,0.001,3091.5,3091.2,3.48693747]
[1767966608956,0.001,3091.5,3090.5,1.29807719]
[1767966609180,1.42397333,3091.5,3090.8,3.23536199]
[1767966609383,1.42397333,3091.5,3090.6,3.43656821]
[1767966609697,1.42397333,3091.5,3090.6,0.2009506]
[1767966609860,7.08487532,3091.3,3090.7,0.252]
[1767966610067,5.66190199,3091.0,3090.3,0.0008088]
[1767966610378,5.66190199,3091.3,3090.4,0.252]
[1767966610695,5.66190199,3091.3,3090.3,0.0008088]
[1767966610696,1.5366243,3091.2,3090.3,0.0008088]
[1767966610877,1.5366243,3091.2,3090.5,0.252]
[1767966611393,7.89253403,3091.4,3090.6,0.03235617]
[1767966611563,3.23478035,3091.4,3090.6,0.03235617]
[1767966611988,3.23567572,3091.5,3090.6,0.03235617]
[1767966612469,1.42297333,3091.4,3090.5,1.55007719]
[1767966612672,1.42297333,3091.4,3090.6,0.03235617]
[1767966612999,1.42297333,3091.4,3090.6,0.51418204]
[1767966613167,1.42297333,3091.4,3090.6,3.74979116]
[1767966613494,1.42297333,3091.4,3090.6,0.48182587]
[1767966613697,3.23567572,3091.5,3090.5,1.55007719]
[1767966613901,1.42297333,3091.4,3090.3,1.29888599]
[1767966614103,5.66190199,3090.8,3090.3,0.0008088]
[1767966614772,1.42297333,3091.0,3090.3,0.0008088]
[1767966615097,5.66190199,3091.1,3090.3,0.0008088]
[1767966615301,0.70848753,3091.0,3090.3,0.0008088]
[1767966615506,12.10190199,3091.2,3090.3,0.0008088]
[1767966615672,6.44,3091.2,3090.4,1.29807719]
[1767966615871,6.44,3091.2,3090.5,0.252]
[1767966616108,3.2350943,3091.1,3090.5,0.252]
[1767966617074,6.4701886,3091.1,3090.5,0.252]
[1767966617478,6.4701886,3091.1,3090.3,0.0008088]
[1767966617479,7.08487532,3091.0,3090.4,0.252]
[1767966617716,5.66190199,3091.0,3090.4,0.252]
[1767966618013,1.42297333,3090.9,3090.4,0.252]
[1767966618578,1.42297333,3090.8,3090.4,0.252]
[1767966618809,4.65817229,3091.0,3090.6,0.002]
[1767966619481,3.23519896,3091.0,3090.6,0.002]
[1767966619881,3.23512022,3091.1,3090.6,0.002]
[1767966620077,6.441,3091.2,3090.6,0.002]
[1767966620078,9.67603751,3091.2,3090.6,0.002]
[1767966620981,6.47107502,3091.2,3090.6,0.002]
[1767966621221,0.001,3091.2,3090.6,0.002]
[1767966621686,0.001,3091.2,3090.8,1.29807719]
[1767966621885,0.001,3091.2,3090.9,0.252]
[1767966624416,0.001,3091.2,3090.9,1.29807719]
[1767966624722,0.001,3091.2,3091.0,0.252]
[1767966625819,0.001,3091.2,3090.8,3.23533964]
[1767966625993,0.001,3091.2,3090.9,0.70534168]
[1767966626721,0.001,3091.2,3090.9,3.94063586]
[1767966626922,0.001,3091.2,3090.9,2.00341887]
[1767966627125,0.001,3091.2,3090.9,0.252]
[1767966627299,0.001,3091.2,3091.0,0.252]
[1767966627699,0.001,3091.2,3090.6,1.30007719]
[1767966627700,0.001,3091.2,3090.8,3.23534945]
[1767966628028,0.001,3091.2,3090.9,3.48729287]
[1767966628219,0.001,3091.2,3090.9,1.55007719]
[1767966628403,0.001,3091.2,3091.0,0.47854387]
[1767966630931,0.001,3091.2,3090.9,1.55007719]
[1767966631118,0.001,3091.2,3090.9,0.252]
[1767966631529,0.001,3091.2,3091.0,3.23519461]
[1767966632035,0.001,3091.2,3091.1,1.29807719]
[1767966633145,0.001,3091.2,3091.0,3.23519461]
[1767966633452,0.001,3091.2,3091.1,0.67224863]
[1767966635100,0.001,3091.2,3091.1,0.252]
[1767966636327,0.001,3091.2,3091.1,3.4870943]
[1767966636725,0.001,3091.2,3091.1,4.79936145]
[1767966637117,0.001,3091.2,3091.1,3.4870943]
[1767966637837,0.001,3091.2,3091.1,0.252]
[1767966638038,0.001,3091.2,3091.1,3.4870943]
[1767966638343,0.001,3091.2,3091.1,4.15933193]
[1767966638644,0.001,3091.2,3091.1,0.92423763]
[1767966638833,0.001,3091.2,3091.1,4.15933193]
[1767966639141,0.001,3091.2,3091.1,0.92423763]
[1767966640243,0.001,3091.2,3091.1,2.23650478]
[1767966641010,0.001,3091.2,3091.1,0.92423763]
[1767966641845,0.001,3091.2,3091.1,4.15933193]
[1767966642226,0.001,3091.2,3091.1,0.92423763]
[1767966643637,0.001,3091.2,3091.1,4.15933193]
[1767966644335,0.001,3091.5,3091.1,5.47159908]
[1767966644529,0.001,3091.5,3091.2,0.87067917]
[1767966645754,0.001,3091.5,3091.2,3.23498332]
[1767966646117,0.001,3091.5,3091.2,1.31226715]
[1767966646321,0.001,3091.5,3091.2,4.54721652]
[1767966646623,0.001,3091.5,3091.2,4.5472416]
[1767966647459,0.001,3091.5,3091.2,1.31226715]
[1767966647758,0.001,3091.5,3091.3,0.47992649]
[1767966648522,0.001,3091.5,3091.2,1.31226715]
[1767966648738,0.001,3091.5,3091.3,0.03234884]
[1767966649644,0.001,3091.5,3091.4,0.0323478]
[1767966650064,0.001,3091.5,3091.1,1.58458014]
[1767966650065,0.001,3091.5,3091.1,4.81964055]
[1767966650224,0.001,3091.5,3091.2,4.81956074]
[1767966650424,0.001,3091.5,3091.3,0.48195607]
[1767966651462,0.001,3091.5,3091.4,0.252]
[1767966652772,0.00080192,3092.2,3091.5,1.33258014]
[1767966653348,3.23475205,3092.2,3091.5,1.33258014]
[1767966653531,3.23475205,3092.2,3091.6,0.48193605]
[1767966653532,0.00080192,3092.2,3091.6,0.48193605]
[1767966653731,4.58351242,3092.2,3091.6,0.48193605]
[1767966654075,1.34869612,3092.1,3091.5,0.252]
[1767966655427,1.34869612,3092.1,3091.8,0.002]
[1767966655654,1.34869612,3092.1,3091.5,0.252]
[1767966655840,1.34869612,3091.9,3091.5,0.254]
[1767966656862,3.2347623,3092.2,3091.5,0.60619087]
[1767966657158,0.00080192,3092.2,3091.5,5.17344086]
[1767966657553,1.34949804,3092.2,3091.5,3.84086068]
[1767966657764,4.58354438,3092.2,3091.5,0.60619087]
[1767966658053,1.34949804,3092.2,3091.5,8.05590788]
[1767966658255,0.00080192,3092.2,3091.6,1.33258014]
[1767966658461,0.00080192,3092.2,3091.6,1.36492585]
[1767966659046,0.00080192,3092.2,3091.6,1.33258014]
[1767966659266,0.00080192,3092.2,3091.7,1.81470336]
[1767966659450,0.001,3092.5,3091.8,1.33258014]
[1767966659966,0.001,3092.5,3091.9,3.23425725]
[1767966660166,0.001,3092.5,3092.0,0.252]
[1767966660345,0.001,3092.5,3092.1,0.67205145]
[1767966660541,0.001,3092.5,3092.2,1.33258014]
[1767966660726,1.34949732,3093.2,3092.3,1.33258014]
[1767966661332,0.0008012,3093.2,3092.3,1.33258014]
[1767966661559,3.23371338,3093.2,3092.3,1.33258014]
[1767966661738,4.5824095,3093.2,3092.3,1.53563213]
[1767966661938,0.0008012,3093.2,3092.4,6.46746862]
[1767966662139,0.0008012,3093.2,3092.5,1.58458014]
[1767966662831,0.0008012,3093.2,3092.5,1.61046843]
[1767966663031,7.88343072,3093.9,3092.8,1.39492486]
[1767966663344,3.23309537,3094.0,3092.8,1.39492486]
[1767966663547,0.001,3094.0,3092.8,1.39492486]
[1767966663939,0.001,3094.0,3093.0,1.39492486]
[1767966664183,0.001,3094.0,3092.9,6.46642308]
[1767966664184,1.41997517,3094.0,3093.1,0.252]
[1767966664345,1.41897517,3093.8,3092.6,5.75958601]
[1767966664542,1.41897517,3093.8,3092.4,1.39492486]
[1767966664736,1.41897517,3093.8,3092.6,3.23345157]
[1767966665165,1.41897517,3093.8,3092.6,1.39492486]
[1767966665656,1.41897517,3093.8,3092.6,3.23351647]
[1767966666058,1.41897517,3093.6,3092.6,3.23351647]
[1767966666263,1.41897517,3093.5,3092.6,3.90544059]
[1767966666464,1.41897517,3093.5,3092.7,0.252]
[1767966666760,1.41897517,3093.5,3091.8,1.39492486]
[1767966666960,1.41897517,3093.5,3092.4,0.252]
[1767966668565,1.41897517,3093.3,3091.8,0.002]
[1767966668739,1.41897517,3093.3,3092.3,0.252]
[1767966669752,1.41897517,3093.3,3092.3,3.48581932]
[1767966670154,1.41897517,3093.3,3092.3,0.252]
[1767966670741,4.65187313,3093.2,3092.3,3.48583387]
[1767966671175,3.23289796,3093.2,3092.3,4.88075873]
[1767966671374,3.23289796,3093.2,3092.3,5.61543797]
[1767966671699,6.46579592,3093.2,3092.3,2.3816041]
[1767966672172,1.41897517,3093.1,3092.3,0.98667924]
[1767966672373,3.23281476,3093.3,3092.3,3.48580937]
[1767966672669,4.65178993,3093.3,3092.3,4.88073423]
[1767966673176,3.23281476,3093.3,3092.4,1.39492486]
[1767966673967,3.23272915,3093.4,3092.4,1.39492486]
[1767966674177,1.41897517,3093.3,3092.4,1.39492486]
[1767966674374,1.41897517,3093.3,3092.3,6.71964826]
[1767966674375,1.41897517,3093.3,3092.5,1.06345731]
[1767966674672,1.41897517,3093.3,3092.6,0.252]
[1767966675668,3.23289796,3093.2,3092.6,0.252]
[1767966675870,4.65187313,3093.2,3092.6,0.252]
[1767966676074,1.41897517,3093.1,3092.3,3.2337581]
[1767966676240,1.41897517,3093.1,3092.7,0.252]
[1767966677097,7.22837261,3093.6,3092.7,0.252]
[1767966677098,2.20734778,3093.6,3092.7,0.252]
[1767966677376,0.001,3093.7,3092.9,1.39492486]
[1767966677377,3.23340194,3093.7,3092.9,1.39492486]
[1767966677876,0.001,3093.7,3093.0,1.39492486]
[1767966678079,0.001,3093.7,3092.9,3.23320537]
[1767966678945,0.001,3093.7,3092.9,7.86134177]
[1767966679147,0.001,3093.7,3093.0,1.39492486]
[1767966679475,0.001,3093.7,3093.1,2.18105904]
[1767966679680,0.001,3093.7,3093.2,0.252]
[1767966680445,0.001,3093.4,3093.2,0.252]
[1767966680650,0.001,3093.4,3093.2,3.48486554]
[1767966680983,0.001,3093.4,3093.2,0.252]
[1767966681184,0.001,3093.4,3093.3,0.42710938]
[1767966681686,0.001,3093.4,3093.3,0.67910938]
[1767966681847,0.001,3093.4,3092.8,0.67190392]
[1767966682052,1.41997517,3093.4,3092.9,0.252]
[1767966682353,1.41897517,3093.3,3092.7,0.002]
[1767966682575,1.41897517,3093.3,3092.8,0.252]
[1767966682983,1.41897517,3093.3,3092.7,0.002]
[1767966683191,3.23370368,3093.4,3092.9,0.252]
[1767966683665,3.23370368,3093.4,3093.0,0.252]
[1767966684183,1.41997517,3093.4,3093.0,0.252]
[1767966685258,0.001,3093.4,3093.0,0.252]
[1767966688060,0.001,3093.4,3093.1,0.252]
[1767966688261,1.41997517,3093.4,3092.7,0.002]
[1767966688682,1.41997517,3093.4,3092.6,0.252]
[1767966688683,1.41977661,3093.2,3092.6,0.252]
[1767966690897,4.65267658,3093.2,3092.6,0.252]
[1767966691269,0.00080144,3093.2,3092.6,3.48549782]
[1767966691895,0.00080144,3093.2,3092.6,4.88042268]
[1767966692193,0.00080144,3093.2,3092.6,3.48549782]
[1767966692390,0.00080144,3093.2,3092.6,4.15740783]
[1767966693795,0.00080144,3093.2,3092.9,0.002]
[1767966697294,0.00080144,3093.2,3092.9,1.38883135]
[1767966697662,0.00080144,3093.2,3093.0,3.23310701]
[1767966697897,0.00080144,3093.2,3093.1,0.252]
[1767966698075,0.00080144,3093.2,3093.1,0.73939384]
[1767966699496,0.00080144,3093.2,3093.1,0.252]
[1767966699996,1.32745089,3093.2,3092.9,0.002]
[1767966700782,0.00080144,3093.2,3092.9,0.002]
[1767966709194,0.00080144,3093.2,3092.9,1.35260726]
[1767966709524,0.001,3093.7,3093.0,0.48379173]
[1767966710211,0.001,3093.7,3093.1,1.31827515]
[1767966710390,0.001,3093.7,3093.1,4.55123028]
[1767966711086,0.001,3093.7,3093.1,3.23295513]
[1767966712722,0.001,3093.7,3093.1,4.55123028]
[1767966712886,0.001,3094.0,3093.3,1.31827515]
[1767966713088,0.001,3094.0,3093.4,1.60260202]
[1767966713331,0.0008096,3094.5,3093.6,1.31827515]
[1767966713514,1.33275302,3094.5,3093.7,0.252]
[1767966713689,1.33194342,3094.4,3093.7,0.252]
[1767966713890,1.33194342,3094.4,3093.8,0.252]
[1767966714214,1.33194342,3094.4,3093.9,0.252]
[1767966714409,1.33194342,3094.4,3093.4,1.37649032]
[1767966714612,3.23236148,3094.5,3093.5,1.31827515]
[1767966714918,1.33194342,3094.2,3093.2,0.5035022]
[1767966715122,1.33194342,3094.2,3093.6,0.252]
[1767966715500,1.33194342,3094.2,3092.8,0.02669053]
[1767966715708,1.33194342,3094.2,3093.2,3.23288038]
[1767966716523,1.33194342,3094.2,3092.8,0.02669053]
[1767966716745,1.33194342,3094.2,3093.3,0.252]
[1767966716912,5.3434877,3094.1,3093.3,0.252]
[1767966717114,5.3434877,3094.1,3093.4,0.252]
[1767966717727,1.33194342,3094.0,3093.4,0.252]
[1767966718712,3.2320002,3094.1,3093.4,0.252]
[1767966718894,4.5638185,3094.2,3093.4,0.252]
[1767966719095,5.37570431,3094.2,3093.6,0.001]
[1767966719296,0.002,3093.9,3093.6,0.001]
[1767966719988,1.33394342,3093.9,3093.6,0.001]
[1767966720214,1.33394342,3093.9,3093.7,0.252]
[1767966721099,0.002,3093.9,3093.7,0.252]
[1767966721302,0.002,3093.9,3093.6,0.001]
[1767966721303,3.23421026,3093.9,3093.6,0.253]
[1767966721501,0.002,3093.9,3093.6,0.253]
[1767966722310,1.33394342,3093.9,3093.6,0.253]
[1767966722933,1.33394342,3093.9,3093.6,0.001]
[1767966723232,0.002,3093.9,3093.6,0.001]
[1767966723431,0.78026794,3093.9,3093.6,0.253]
[1767966723628,0.78026794,3093.9,3093.6,0.001]
[1767966723830,2.0970212,3093.9,3093.5,0.252]
[1767966724273,1.31675326,3093.8,3092.9,0.002]
[1767966724602,1.31675326,3093.8,3093.0,0.252]
[1767966724930,1.31675326,3093.6,3093.0,0.252]
[1767966725231,4.54933771,3093.5,3093.0,0.252]
[1767966726334,1.31675326,3093.4,3093.0,0.252]
[1767966726999,3.23248137,3093.6,3093.0,0.252]
[1767966727427,4.54912873,3093.7,3093.0,0.252]
[1767966727739,0.77814761,3093.6,3093.0,0.252]
[1767966728036,2.09490087,3093.6,3093.0,0.252]
[1767966728340,3.23229191,3093.8,3093.1,0.03233002]
[1767966728341,1.31675326,3093.8,3093.1,0.03233002]
[1767966728915,1.31675326,3093.8,3093.0,3.48510701]
[1767966729534,4.54906104,3093.8,3093.0,3.48510701]
[1767966729736,0.002,3093.9,3093.1,1.37847866]
[1767966729939,0.002,3093.9,3093.3,1.37847866]
[1767966730140,0.002,3093.9,3093.4,0.03232688]
[1767966730318,0.002,3093.9,3093.5,0.252]
[1767966733824,0.002,3093.9,3093.5,4.86304322]
[1767966734016,0.002,3093.9,3093.5,6.71714901]
[1767966734219,0.002,3094.2,3093.6,2.05342625]
[1767966734414,0.002,3094.2,3093.7,1.37847866]
[1767966735816,0.002,3094.2,3093.8,6.46454198]
[1767966736049,0.002,3094.2,3093.9,1.37847866]
[1767966736351,0.002,3094.2,3094.0,0.252]
[1767966736653,0.002,3094.2,3094.1,1.37847866]
[1767966736823,1.31755742,3095.1,3094.4,0.00080432]
[1767966737847,1.31675326,3095.0,3094.4,0.00080432]
[1767966738018,1.31675326,3095.0,3094.5,0.252]
[1767966739120,3.23172542,3095.1,3094.5,0.252]
[1767966739620,4.54847868,3095.1,3094.5,0.252]
[1767966740624,1.31675326,3095.0,3094.4,0.00080432]
[1767966741026,1.31675326,3095.0,3094.4,0.25280432]
[1767966741647,0.77881643,3095.1,3094.4,3.48438914]
[1767966741955,0.00080416,3095.1,3094.4,3.48438914]
[1767966742318,1.31675326,3095.0,3094.4,3.48438914]
[1767966743349,0.001,3094.8,3094.4,3.48438914]
[1767966744824,0.001,3094.8,3094.5,1.37847866]
[1767966745024,0.001,3094.8,3094.6,0.48628678]
[1767966746435,0.00080416,3095.1,3094.6,0.48628678]
[1767966746866,0.00080416,3095.1,3094.7,3.23133098]
[1767966747348,0.00080416,3095.1,3094.7,6.46266196]
[1767966747760,0.00080416,3095.1,3094.6,3.71766804]
[1767966748067,1.31755742,3095.1,3094.7,0.252]
[1767966749073,1.31675326,3095.0,3094.7,0.252]
[1767966749271,1.31675326,3095.0,3094.4,0.00080432]
[1767966749471,1.31675326,3095.0,3094.6,0.252]
[1767966749940,1.31675326,3095.0,3094.4,0.00080432]
[1767966750142,1.31675326,3095.0,3094.5,0.252]
[1767966751476,3.23173915,3095.1,3094.5,0.60045369]
[1767966751477,0.00080416,3095.1,3094.5,0.60045369]
[1767966751644,1.31755742,3095.1,3094.5,0.60045369]
[1767966752182,1.31675326,3095.0,3094.5,0.60045369]
[1767966754284,1.34486402,3094.9,3094.6,0.252]
[1767966754698,3.23175218,3095.1,3094.6,0.252]
[1767966754995,0.00080416,3095.1,3094.8,0.001]
[1767966755364,3.23173655,3095.1,3094.8,0.001]
[1767966756695,0.00080416,3095.1,3094.8,0.001]
[1767966758768,0.00080416,3095.1,3094.8,1.27621177]
[1767966759166,0.00080192,3095.3,3094.8,0.001]
[1767966759368,1.34566594,3095.3,3094.8,0.80333046]
[1767966759580,1.34566594,3095.3,3094.8,0.001]
[1767966760098,0.00080192,3095.3,3094.8,1.27621177]
[1767966762008,0.00080192,3095.3,3094.8,0.001]
[1767966763184,0.00080192,3095.3,3094.8,1.27621177]
[1767966763818,0.00080192,3095.3,3094.9,1.30752299]
[1767966764018,0.002,3095.5,3095.0,6.46203554]
[1767966764308,0.002,3095.5,3095.1,0.90143468]
[1767966764514,1.34686402,3095.7,3095.1,0.64943468]
[1767966764515,0.002,3095.7,3095.1,0.64943468]
[1767966764676,0.002,3095.7,3095.2,0.252]
[1767966765310,1.34686402,3095.7,3095.1,0.64943468]
[1767966765706,1.34686402,3095.7,3095.2,0.252]
[1767966765898,1.34686402,3095.7,3095.3,0.252]
[1767966766911,0.002,3095.7,3095.3,0.252]
[1767966769512,1.34686402,3095.7,3095.3,0.252]
[1767966771116,0.002,3095.7,3095.3,3.48268386]
[1767966771303,0.002,3095.7,3095.4,2.00391202]
[1767966772188,0.002,3095.7,3095.5,3.23049588]
[1767966772389,0.002,3095.7,3095.4,5.26677695]
[1767966772790,0.002,3095.7,3095.4,3.93420588]
[1767966773345,1.30055014,3096.2,3095.4,7.16480612]
[1767966773633,0.002,3096.8,3095.6,1.33257107]
[1767966773634,1.3689571,3096.6,3095.6,1.33257107]
[1767966774333,1.3689571,3096.6,3095.7,7.79314541]
[1767966774502,0.002,3096.6,3096.0,1.33257107]
[1767966774886,7.951e-05,3096.6,3096.0,1.33257107]
[1767966776491,7.951e-05,3096.6,3096.0,3.22997416]
[1767966776805,7.951e-05,3096.6,3096.2,1.33257107]
[1767966777017,7.951e-05,3096.6,3096.3,0.252]
[1767966778235,0.002,3097.1,3096.3,0.252]
[1767966778236,1.36775974,3099.2,3097.8,3.23087389]
[1767966778437,0.00080288,3100.3,3098.5,0.02588829]
[1767966778438,1.3669571,3099.5,3098.5,0.02588829]
[1767966778641,0.00080288,3100.3,3098.6,0.252]
[1767966778642,1.3669571,3099.4,3098.6,0.252]
[1767966779005,1.3669571,3099.2,3098.5,3.22734733]